bitfinex/quotes_ETHUSD_20251119
["timestamp","ask_amount","ask_price","bid_price","bid_amount"]
[1763568212316,0.407504,2988.9,2987.2,1.37329264]
[1763568212519,0.4887,2988.9,2987.2,0.4663]
[1763568212677,0.405504,2988.8,2987.2,1.37329264]
[1763568212882,0.405504,2988.8,2987.1,3.34769059]
[1763568212883,0.405504,2988.8,2987.0,3.34782091]
[1763568213079,0.405504,2988.6,2986.9,0.001]
[1763568213290,0.405504,2988.6,2986.9,3.34894788]
[1763568213497,0.4867,2988.5,2987.0,1.37329264]
[1763568213699,0.67586971,2988.8,2987.2,6.69523298]
[1763568213927,0.4867,2988.8,2987.3,0.90699264]
[1763568214221,0.002,2988.9,2987.3,1.37329264]
[1763568214396,0.002,2988.9,2987.4,0.4663]
[1763568214602,0.4887,2988.9,2987.4,0.4663]
[1763568215424,0.002,2988.9,2987.6,7.13472145]
[1763568215594,0.002,2988.9,2987.7,1.31249664]
[1763568215793,0.002,2988.9,2987.9,1.31249664]
[1763568216190,0.002,2989.2,2988.8,0.1961]
[1763568216404,0.002,2989.2,2988.9,0.405504]
[1763568216605,0.002,2989.2,2988.5,0.1961]
[1763568216792,0.002,2989.2,2988.3,0.4663]
[1763568217103,0.405504,2989.0,2987.7,0.1961]
[1763568217424,0.4867,2989.1,2987.7,0.1961]
[1763568217622,0.002,2989.2,2987.7,0.1961]
[1763568217623,0.4845,2989.0,2987.7,0.1961]
[1763568218390,0.46904924,2988.9,2987.7,0.1961]
[1763568218733,0.4845,2989.0,2987.7,0.1961]
[1763568218932,0.95354924,2989.0,2987.7,0.1961]
[1763568219141,0.46904924,2988.9,2987.7,0.1961]
[1763568219338,0.95354924,2988.9,2987.5,1.56543559]
[1763568219745,0.95354924,2988.8,2987.5,0.65844295]
[1763568219908,0.95354924,2988.8,2987.5,1.56543559]
[1763568220242,0.46904924,2988.7,2987.6,0.4993]
[1763568220404,0.002,2989.2,2987.7,0.405504]
[1763568220603,0.002,2989.2,2987.6,1.40629264]
[1763568220806,0.4865,2989.2,2987.6,1.40629264]
[1763568221041,0.4865,2989.2,2987.6,0.4993]
[1763568221442,0.4865,2989.2,2987.5,0.65844295]
[1763568221443,0.405504,2989.1,2987.5,1.56543559]
[1763568221647,0.405504,2989.1,2987.6,0.90699264]
[1763568221834,0.4845,2989.0,2987.5,0.65844295]
[1763568222040,0.405504,2988.9,2987.5,0.65844295]
[1763568222370,0.4845,2989.0,2987.5,0.65844295]
[1763568222570,0.4845,2989.0,2987.5,1.56543559]
[1763568222959,0.4845,2989.0,2987.6,1.40629264]
[1763568223144,0.002,2989.2,2987.6,1.40629264]
[1763568223472,0.4865,2989.2,2987.7,0.6862]
[1763568223969,0.4865,2989.2,2987.7,3.53394993]
[1763568224172,0.46458946,2989.1,2987.7,0.1869]
[1763568224379,0.4865,2989.2,2987.7,1.09389264]
[1763568224579,0.4865,2989.2,2987.8,0.4993]
[1763568224954,0.002,2989.2,2987.8,1.40629264]
[1763568225268,0.002,2989.2,2987.9,0.4993]
[1763568225847,0.002,2989.2,2988.0,3.34672021]
[1763568226167,0.002,2989.2,2988.0,0.90699264]
[1763568226382,0.002,2989.2,2988.1,0.4993]
[1763568227149,0.002,2989.2,2988.2,0.405504]
[1763568227466,0.002,2989.2,2988.3,0.90699264]
[1763568227777,0.002,2989.2,2988.3,4.75260557]
[1763568227978,0.002,2989.2,2988.4,0.4993]
[1763568229547,0.002,2989.2,2988.1,0.4993]
[1763568229941,0.002,2989.2,2988.1,3.84579901]
[1763568230141,0.002,2989.2,2988.1,0.4993]
[1763568230367,0.002,2989.2,2988.2,0.4993]
[1763568230575,0.0012,2989.2,2988.2,0.4993]
[1763568231088,0.0012,2989.2,2987.8,1.81179664]
[1763568231540,0.0012,2989.2,2987.9,0.4993]
[1763568231877,0.0012,2989.2,2988.0,0.90699264]
[1763568232238,0.0012,2989.2,2988.0,0.4993]
[1763568234182,0.0012,2989.2,2988.0,3.84593402]
[1763568234547,0.0012,2989.2,2988.1,0.4993]
[1763568235159,0.4845,2989.1,2987.7,0.1869]
[1763568235490,0.4845,2989.1,2987.8,0.90699264]
[1763568235841,0.0012,2989.2,2987.9,0.4993]
[1763568236041,0.0012,2989.2,2988.0,0.405504]
[1763568236284,0.0012,2989.2,2988.2,0.90699264]
[1763568236795,0.52510364,2991.3,2990.3,0.1869]
[1763568236990,0.192,2993.0,2990.3,0.1869]
[1763568236991,0.192,2993.0,2991.1,0.405504]
[1763568237147,0.1941,2991.9,2990.5,0.90699264]
[1763568237345,3.18769982,2991.8,2990.4,0.405504]
[1763568237571,0.1941,2991.9,2990.5,0.90699264]
[1763568237973,0.4845,2991.8,2990.4,0.405504]
[1763568238375,0.4845,2991.8,2990.5,0.90699264]
[1763568238545,0.4845,2991.8,2990.6,0.405504]
[1763568238949,0.4845,2991.8,2990.5,0.90699264]
[1763568239484,0.57022713,2991.7,2990.3,4.20749908]
[1763568239671,0.97573113,2991.7,2990.3,0.67646143]
[1763568239847,0.405504,2991.5,2990.3,0.67646143]
[1763568240051,0.57022713,2991.4,2990.3,0.65670927]
[1763568240247,0.57022713,2991.4,2989.4,3.34512283]
[1763568240248,0.405504,2991.3,2989.4,3.34512844]
[1763568240516,0.405504,2991.3,2989.3,0.90699264]
[1763568240782,0.405504,2991.1,2988.6,7.13472145]
[1763568241148,0.405504,2991.4,2989.2,0.9404464]
[1763568241350,0.4845,2991.8,2990.0,0.90699264]
[1763568241551,0.4845,2991.8,2990.1,0.405504]
[1763568241750,0.4845,2991.8,2989.7,0.405504]
[1763568242203,0.4845,2991.8,2989.9,0.405504]
[1763568242503,0.1941,2991.9,2989.9,1.31249664]
[1763568242680,0.4845,2991.8,2989.9,1.31249664]
[1763568244281,0.4845,2991.8,2990.1,1.31249664]
[1763568244611,0.1941,2991.9,2990.1,8.44721809]
[1763568244828,0.4845,2992.4,2990.1,8.44721809]
[1763568245189,0.002,2991.8,2990.9,1.31249664]
[1763568245384,0.002,2991.8,2990.1,0.90699264]
[1763568245584,0.1941,2991.7,2990.2,0.43894657]
[1763568245920,0.6786,2991.7,2990.2,0.405504]
[1763568246119,0.6786,2991.7,2990.1,0.90699264]
[1763568246284,0.4845,2991.6,2990.3,0.90699264]
[1763568247330,0.4845,2991.6,2990.1,3.34432502]
[1763568248083,0.4845,2991.6,2990.1,6.68869477]
[1763568248284,0.4845,2991.6,2990.2,1.31249664]
[1763568248510,0.4845,2991.6,2989.5,0.90699264]
[1763568248883,0.4845,2991.6,2989.4,7.13472145]
[1763568249086,0.405504,2991.5,2989.1,0.8652406]
[1763568249385,0.405504,2991.5,2989.1,0.6783406]
[1763568249586,1.31249664,2991.3,2988.4,3.34618685]
[1763568249795,0.405504,2991.1,2988.3,3.34634311]
[1763568249996,0.405504,2990.9,2988.3,3.34634311]
[1763568250193,0.405504,2990.9,2988.1,3.34660821]
[1763568250420,0.405504,2990.7,2988.2,0.90699264]
[1763568250782,0.405504,2990.5,2988.2,0.90699264]
[1763568251136,0.4562,2990.6,2989.0,0.90699264]
[1763568251350,0.1821,2990.8,2988.3,7.13472145]
[1763568251351,0.4562,2990.5,2988.4,0.90699264]
[1763568251502,0.405504,2990.4,2988.3,7.13472145]
[1763568251934,0.1821,2990.8,2988.0,4.00865364]
[1763568251935,0.405504,2990.2,2988.0,4.00865364]
[1763568252135,0.405504,2990.0,2988.0,0.66196722]
[1763568252301,0.405504,2990.0,2988.0,4.00866775]
[1763568252503,0.405504,2989.8,2988.0,4.00866775]
[1763568252752,0.4562,2989.9,2988.1,0.90699264]
[1763568253041,0.405504,2990.4,2988.0,7.35538796]
[1763568253042,0.405504,2989.7,2988.0,0.66196722]
[1763568253207,0.405504,2989.7,2988.0,4.00868598]
[1763568253400,0.4562,2989.6,2988.1,0.90699264]
[1763568253630,0.4562,2989.6,2988.0,7.35540619]
[1763568253833,0.4562,2989.6,2988.1,0.90699264]
[1763568254040,0.4562,2989.6,2988.0,7.35540619]
[1763568254438,0.4562,2989.6,2988.1,0.90699264]
[1763568255634,0.4554,2989.6,2988.1,0.90699264]
[1763568256156,0.1821,2988.2,2988.0,0.001]
[1763568256304,0.405504,2989.1,2988.0,0.001]
[1763568256502,0.1821,2989.5,2988.0,0.6701422]
[1763568256804,0.405504,2989.3,2988.0,0.001]
[1763568257339,0.405504,2989.1,2988.0,0.001]
[1763568257542,0.405504,2988.9,2988.0,0.001]
[1763568257755,0.405504,2988.7,2987.7,0.001]
[1763568257908,0.1821,2987.5,2986.9,0.001]
[1763568258108,0.405504,2987.4,2986.9,0.001]
[1763568258439,1.29053622,2987.4,2986.6,0.001]
[1763568258674,1.29053622,2987.4,2986.2,0.001]
[1763568258675,0.1821,2986.4,2986.2,0.001]
[1763568258888,0.93552295,2986.3,2984.0,9.19209394]
[1763568259051,0.93552295,2986.3,2984.0,9.19210142]
[1763568259052,0.405504,2986.1,2984.0,9.19210142]
[1763568259250,0.405504,2986.1,2984.5,3.35164499]
[1763568259461,0.4562,2986.0,2984.5,0.001]
[1763568259669,0.4562,2986.0,2984.5,3.35161284]
[1763568259878,0.405504,2985.9,2984.5,0.68843653]
[1763568260085,1.36435517,2985.9,2984.5,0.001]
[1763568260281,0.1821,2984.6,2984.5,0.001]
[1763568260795,0.405504,2984.5,2984.0,0.001]
[1763568261237,0.4562,2984.4,2984.0,0.001]
[1763568261983,0.4562,2985.1,2984.0,0.001]
[1763568262300,0.1821,2987.5,2984.4,3.35075727]
[1763568262301,0.4562,2985.7,2984.4,3.35075727]
[1763568262446,0.1821,2985.5,2984.5,0.90699264]
[1763568262646,0.1821,2985.5,2984.2,3.35198183]
[1763568262851,0.6383,2985.5,2984.3,0.90699264]
[1763568263156,0.1821,2987.5,2984.6,0.405504]
[1763568263478,0.1821,2987.5,2984.2,13.40492732]
[1763568263479,0.4562,2986.3,2984.2,0.001]
[1763568263984,0.98621895,2986.3,2984.2,0.001]
[1763568264277,0.4562,2986.9,2985.1,0.405504]
[1763568264489,0.4562,2986.9,2984.3,0.91929264]
[1763568264490,0.4562,2986.9,2984.3,0.0123]
[1763568264665,0.4562,2986.9,2984.3,4.27114773]
[1763568264842,0.002,2985.5,2984.4,0.405504]
[1763568265357,0.002,2985.5,2984.7,1.31249664]
[1763568265887,0.002,2985.5,2984.8,0.03350308]
[1763568266054,0.002,2985.5,2984.8,0.405504]
[1763568266266,0.002,2985.5,2985.0,0.90699264]
[1763568266677,0.002,2985.5,2984.3,3.35182864]
[1763568266884,0.002,2985.5,2984.4,0.90699264]
[1763568267079,0.002,2985.5,2984.5,0.43901044]
[1763568267266,0.002,2985.5,2984.5,0.405504]
[1763568268061,0.002,2985.5,2984.4,0.90699264]
[1763568268691,0.002,2985.5,2984.6,0.90699264]
[1763568269582,0.002,2985.5,2984.7,0.0335042]
[1763568269962,0.002,2985.5,2984.6,6.75924719]
[1763568270162,0.002,2985.5,2984.7,0.405504]
[1763568270669,0.002,2985.5,2984.8,0.90699264]
[1763568271182,0.6808,2985.5,2984.3,0.001]
[1763568271385,0.6808,2985.5,2984.3,3.35186332]
[1763568271591,0.002,2985.5,2984.3,0.0133]
[1763568271769,0.002,2985.5,2984.9,0.90699264]
[1763568272965,0.1962,2985.5,2984.6,0.90699264]
[1763568273389,0.4846,2985.4,2984.3,0.001]
[1763568273993,0.8913482,2985.3,2984.3,0.001]
[1763568274195,0.4846,2985.2,2984.3,0.001]
[1763568274396,0.1962,2985.5,2984.3,3.38535954]
[1763568274595,0.002,2985.5,2984.4,6.74694719]
[1763568274797,0.002,2985.5,2984.7,0.90699264]
[1763568275126,0.002,2985.5,2985.2,0.90699264]
[1763568275327,0.002,2985.5,2984.8,0.417804]
[1763568275497,0.002,2985.5,2985.2,0.90699264]
[1763568275928,0.002,2985.5,2984.6,3.35053273]
[1763568276228,0.4866,2985.5,2984.7,0.90699264]
[1763568276536,0.002,2985.5,2984.7,0.90699264]
[1763568276733,0.002,2985.5,2984.7,3.3504061]
[1763568276917,0.002,2985.5,2984.6,4.25747475]
[1763568277232,0.4866,2985.5,2984.5,0.90699264]
[1763568277467,0.4866,2985.5,2984.3,0.001]
[1763568277616,0.4866,2985.5,2984.3,0.90799264]
[1763568277925,0.4866,2985.5,2984.3,0.001]
[1763568278125,0.4866,2985.5,2984.3,3.35186478]
[1763568278285,0.4866,2985.5,2984.3,10.96059376]
[1763568278286,0.002,2985.5,2984.3,10.96059376]
[1763568278489,0.002,2985.5,2984.9,0.90699264]
[1763568278710,0.002,2985.5,2985.0,6.7001675]
[1763568279034,0.002,2985.5,2984.5,3.35064499]
[1763568279189,0.4669,2985.5,2984.4,0.90699264]
[1763568279395,0.4669,2985.5,2984.3,3.35186166]
[1763568279396,0.4669,2985.5,2984.3,0.90799264]
[1763568279925,0.4669,2985.5,2984.3,0.001]
[1763568280131,1.38157642,2985.5,2984.3,0.001]
[1763568280303,0.4669,2985.5,2984.3,0.001]
[1763568280631,0.1961,2985.3,2984.3,0.90799264]
[1763568280930,0.1961,2985.3,2984.3,0.001]
[1763568281635,0.1961,2985.3,2984.4,0.90699264]
[1763568281822,0.002,2985.5,2984.4,0.90699264]
[1763568282535,0.002,2985.5,2984.3,0.001]
[1763568282536,0.4649,2985.4,2984.3,0.001]
[1763568283048,0.405504,2985.3,2984.3,0.001]
[1763568283393,0.405504,2985.1,2984.3,0.001]
[1763568283826,0.4649,2985.0,2984.3,0.001]
[1763568284621,0.405504,2984.9,2984.3,0.001]
[1763568285002,0.405504,2984.7,2984.3,0.001]
[1763568285203,0.89233308,2984.6,2984.3,0.001]
[1763568285418,0.4649,2984.6,2984.3,0.001]
[1763568285727,0.4649,2984.5,2984.3,0.001]
[1763568286316,0.4649,2985.0,2984.3,0.001]
[1763568286719,0.405504,2984.9,2984.3,0.001]
[1763568286919,1.35986461,2984.9,2984.2,0.001]
[1763568287108,1.35986461,2984.9,2983.9,0.001]
[1763568287109,0.405504,2984.0,2983.9,0.001]
[1763568287309,0.405504,2984.0,2982.4,6.85181114]
[1763568287527,0.4649,2983.9,2982.4,0.001]
[1763568287711,0.1961,2982.5,2982.1,0.001]
[1763568287915,0.86332374,2982.4,2982.1,0.001]
[1763568288110,0.86332374,2982.4,2981.8,0.001]
[1763568288111,1.40856394,2982.4,2981.8,0.001]
[1763568288318,0.4649,2982.4,2981.8,0.001]
[1763568288498,0.1961,2982.8,2981.8,0.001]
[1763568289336,0.92266594,2982.7,2981.8,0.001]
[1763568289536,0.4649,2982.7,2981.8,0.001]
[1763568289694,0.4649,2982.7,2981.8,0.90799264]
[1763568289895,1.10033764,2984.6,2982.0,6.85081114]
[1763568290129,0.1961,2983.6,2982.6,0.90699264]
[1763568290532,0.1961,2982.7,2982.3,0.67424788]
[1763568290732,0.1961,2982.7,2981.8,0.001]
[1763568291533,0.1961,2981.9,2981.8,0.001]
[1763568291902,0.661,2981.9,2981.8,0.001]
[1763568292302,0.601604,2982.7,2981.8,0.001]
[1763568292303,0.1961,2982.7,2981.8,0.001]
[1763568292543,0.405504,2982.5,2981.8,0.001]
[1763568292746,0.4649,2982.6,2981.8,0.001]
[1763568292949,0.1961,2983.0,2981.9,0.90699264]
[1763568293255,0.1961,2983.6,2981.9,0.90699264]
[1763568293423,0.1961,2983.6,2981.8,6.85181114]
[1763568293424,0.661,2983.6,2982.4,0.90699264]
[1763568294047,0.1961,2983.6,2982.4,0.90699264]
[1763568294417,0.1961,2983.9,2982.4,0.92709264]
[1763568294725,0.1961,2983.9,2982.9,4.25941447]
[1763568294927,0.1961,2983.9,2982.8,4.25949946]
[1763568295327,0.1961,2983.9,2982.6,0.90699264]
[1763568295568,0.4649,2983.8,2982.4,0.90699264]
[1763568295853,0.4649,2983.8,2982.1,0.90699264]
[1763568295854,0.405504,2983.7,2982.1,0.90699264]
[1763568296350,0.405504,2983.5,2981.8,0.001]
[1763568296551,0.84893127,2983.5,2981.8,0.001]
[1763568296718,1.3630298,2983.4,2981.8,0.001]
[1763568296912,0.405504,2983.3,2981.8,0.001]
[1763568297139,1.32510653,2983.3,2981.8,0.001]
[1763568297343,0.405504,2983.1,2981.8,0.001]
[1763568297816,0.405504,2982.9,2981.8,0.001]
[1763568298016,0.405504,2982.7,2981.8,0.001]
[1763568298218,0.405504,2982.5,2981.8,0.001]
[1763568298428,0.86020653,2982.5,2981.8,0.001]
[1763568298628,0.661,2983.0,2981.8,0.001]
[1763568298854,0.870404,2982.9,2981.8,0.001]
[1763568299229,0.405504,2982.7,2981.8,0.001]
[1763568299430,0.1961,2981.9,2981.8,0.001]
[1763568299632,0.1961,2981.9,2981.6,4.53279374]
[1763568299633,0.405504,2981.8,2981.6,4.53279374]
[1763568299832,0.44268587,2981.7,2980.5,0.001]
[1763568300065,0.405504,2981.6,2980.5,0.001]
[1763568300376,0.405504,2981.4,2981.2,0.001]
[1763568300579,0.405504,2981.4,2980.3,0.001]
[1763568300580,0.405504,2981.2,2980.3,0.001]
[1763568300740,1.07733938,2981.2,2980.3,0.001]
[1763568301087,0.405504,2981.0,2980.3,0.001]
[1763568301375,0.405504,2981.0,2978.5,0.1839]
[1763568301376,0.405504,2980.8,2978.5,0.1839]
[1763568301552,0.405504,2980.8,2978.6,0.51207281]
[1763568301748,0.405504,2980.6,2978.6,0.51207281]
[1763568301951,0.405504,2980.4,2978.6,0.4785]
[1763568302477,0.405504,2980.7,2979.1,0.90699264]
[1763568302983,0.405504,2980.7,2979.1,4.26367664]
[1763568302984,0.405504,2980.6,2979.1,4.26367664]
[1763568303139,0.405504,2980.6,2978.5,0.1839]
[1763568303140,0.405504,2980.6,2978.5,0.6624]
[1763568303333,0.81412935,2981.1,2977.1,0.001]
[1763568303334,0.405504,2980.4,2977.9,0.4785]
[1763568303593,0.405504,2980.2,2977.9,0.4785]
[1763568303738,0.8713886,2980.1,2977.9,0.4785]
[1763568303942,0.405504,2980.0,2977.9,0.4785]
[1763568304205,0.405504,2979.8,2977.7,0.1737]
[1763568304506,0.405504,2977.7,2977.4,0.001]
[1763568304637,0.45757213,2977.6,2977.4,0.001]
[1763568304844,0.1961,2978.2,2977.4,0.001]
[1763568305448,0.870404,2978.1,2977.4,0.001]
[1763568305782,0.4649,2978.0,2977.4,0.001]
[1763568306083,0.4649,2978.5,2977.4,0.001]
[1763568306380,0.1961,2979.0,2977.5,0.4785]
[1763568306551,0.4649,2978.9,2977.5,0.4785]
[1763568307052,0.4649,2978.9,2977.7,0.90699264]
[1763568307251,0.4649,2978.9,2977.5,0.4785]
[1763568307674,0.4649,2978.9,2977.4,0.001]
[1763568308294,0.405504,2978.8,2977.4,0.001]
[1763568308638,0.405504,2978.6,2977.4,0.001]
[1763568309078,0.405504,2978.4,2977.4,0.001]
[1763568309279,7.16936972,2978.4,2977.4,0.001]
[1763568309581,0.405504,2978.1,2977.4,0.001]
[1763568309796,1.31249664,2977.9,2977.4,0.001]
[1763568310111,0.405504,2977.9,2977.4,0.001]
[1763568310253,0.4619,2978.0,2977.4,0.001]
[1763568311191,0.83716945,2977.9,2977.4,0.001]
[1763568311394,0.405504,2977.7,2977.4,0.001]
[1763568311889,0.405504,2977.9,2977.4,0.001]
[1763568312089,0.4619,2978.0,2977.4,0.001]
[1763568312303,0.37536947,2979.1,2977.4,0.001]
[1763568312304,0.4619,2978.1,2977.4,0.001]
[1763568312501,0.4619,2978.0,2977.4,0.001]
[1763568312796,0.405504,2977.9,2977.4,0.001]
[1763568313098,0.4619,2978.5,2977.4,0.001]
[1763568313389,0.88435281,2978.5,2977.4,0.001]
[1763568313591,0.4619,2978.5,2977.4,0.001]
[1763568313802,0.405504,2978.3,2977.4,0.001]
[1763568314157,0.4619,2978.4,2977.4,0.001]
[1763568314358,0.42245281,2978.3,2977.4,0.001]
[1763568314553,0.4619,2978.4,2977.4,0.001]
[1763568314973,0.88435281,2978.4,2977.4,0.001]
[1763568315149,0.42245281,2978.3,2977.4,0.001]
[1763568315379,0.88435281,2978.3,2977.4,0.001]
[1763568315592,0.405504,2978.2,2977.4,0.001]
[1763568315802,0.867404,2978.2,2977.4,0.001]
[1763568316291,4.45926826,2979.6,2977.4,0.001]
[1763568316292,0.405504,2978.0,2977.4,0.001]
[1763568316699,0.405504,2977.9,2977.4,0.001]
[1763568317492,0.46411947,2977.9,2977.5,0.4535]
[1763568317690,0.4619,2978.7,2977.4,0.001]
[1763568318111,0.86962347,2978.6,2977.4,0.001]
[1763568318266,1.32894726,2978.6,2977.4,0.001]
[1763568318471,0.595204,2977.5,2977.4,0.001]
[1763568318684,1.5184806,2977.5,2977.4,0.001]
[1763568318918,1.9803806,2977.5,2977.4,0.001]
[1763568319622,2.655742,2977.4,2977.3,0.001]
[1763568319919,7.55222524,2977.4,2977.3,0.001]
[1763568320126,2.69767324,2977.4,2977.3,0.001]
[1763568320319,2.20427876,2977.4,2977.3,0.001]
[1763568320526,2.63850657,2977.4,2977.3,0.001]
[1763568320924,1.80312045,2977.4,2977.3,0.001]
[1763568321236,0.90699264,2977.4,2977.3,0.001]
[1763568321449,0.43422781,2977.4,2977.3,0.001]
[1763568321597,1.29818493,2977.4,2977.3,0.001]
[1763568321800,0.86830281,2977.4,2977.3,0.001]
[1763568322023,1.70368893,2977.4,2977.3,0.001]
[1763568322247,0.405504,2977.3,2977.1,0.001]
[1763568322424,0.867404,2977.3,2977.1,0.001]
[1763568322655,1.24178893,2977.2,2977.1,0.001]
[1763568322940,1.70368893,2977.2,2977.1,0.001]
[1763568323594,1.74718893,2977.2,2977.1,0.001]
[1763568324292,1.73718893,2977.2,2977.1,0.001]
[1763568325206,1.30730681,2977.2,2977.0,0.001]
[1763568325528,1.39753493,2977.1,2977.0,0.001]
[1763568326234,1.32603893,2977.1,2977.0,0.001]
[1763568326457,1.77287226,2977.1,2977.0,0.001]
[1763568327668,0.84596945,2977.0,2976.8,0.001]
[1763568327855,0.882504,2977.0,2976.8,0.001]
[1763568328167,0.92886826,2976.9,2976.8,0.001]
[1763568328332,0.48840281,2976.9,2976.8,0.001]
[1763568328920,0.477,2976.9,2976.8,0.001]
[1763568329125,1.40586826,2976.9,2976.8,0.001]
[1763568329364,1.37090681,2976.9,2976.8,0.001]
[1763568329847,0.405504,2976.8,2975.1,0.4622]
[1763568330022,3.62997944,2976.8,2975.1,0.4622]
[1763568330333,3.62997944,2976.8,2974.8,0.1839]
[1763568330334,0.405504,2976.6,2974.9,0.4622]
[1763568330537,0.477,2976.5,2974.9,0.4622]
[1763568330737,1.90525068,2976.5,2974.9,0.4622]
[1763568330953,1.42825068,2976.4,2974.9,0.4622]
[1763568331133,0.29392769,2976.3,2974.9,0.4622]
[1763568331457,1.15422018,2976.3,2974.9,0.4622]
[1763568331660,0.477,2976.3,2974.9,0.4622]
[1763568332020,0.477,2976.3,2974.8,0.1839]
[1763568332354,0.477,2976.3,2974.9,0.4622]
[1763568332519,0.405504,2976.2,2974.9,0.4622]
[1763568332724,0.69991549,2976.2,2974.9,0.4622]
[1763568333074,0.405504,2976.0,2974.9,0.4622]
[1763568333280,0.405504,2976.0,2974.8,0.1839]
[1763568333476,0.405504,2975.8,2974.8,0.1839]
[1763568333756,0.405504,2975.8,2974.6,0.1839]
[1763568333919,1.85544297,2975.8,2974.7,0.4622]
[1763568334125,1.56103311,2975.8,2974.7,0.4622]
[1763568334355,0.882504,2975.8,2974.7,0.4622]
[1763568334528,0.882504,2975.8,2974.6,0.1839]
[1763568334841,0.6782642,2976.0,2974.7,0.4622]
[1763568335034,1.57733764,2976.4,2974.7,0.4622]
[1763568335035,0.6782642,2976.1,2974.7,0.4622]
[1763568335227,0.477,2976.3,2974.7,0.4622]
[1763568335434,0.77124224,2976.3,2974.7,0.4622]
[1763568335845,0.45710281,2976.2,2974.7,0.4622]
[1763568336044,0.405504,2976.1,2974.7,0.4622]
[1763568336366,0.405504,2975.9,2974.7,0.4622]
[1763568336862,0.405504,2975.7,2974.6,0.001]
[1763568337322,0.45710281,2975.6,2974.6,0.001]
[1763568337531,0.45710281,2975.6,2974.7,0.4622]
[1763568337532,0.405504,2975.5,2974.7,0.4622]
[1763568337752,0.405504,2975.7,2974.7,0.4622]
[1763568338064,0.405504,2976.0,2974.7,0.4622]
[1763568338362,0.405504,2975.5,2974.7,0.4622]
[1763568338565,0.405504,2975.8,2974.7,0.4622]
[1763568338941,0.405504,2975.6,2974.7,0.4622]
[1763568339140,0.405504,2975.4,2974.7,0.4622]
[1763568339544,0.405504,2975.6,2975.3,0.1888]
[1763568339732,0.405504,2976.0,2974.7,0.4622]
[1763568339733,0.405504,2976.0,2975.1,0.1888]
[1763568339934,0.880504,2976.0,2974.7,0.4622]
[1763568340336,0.405504,2975.8,2974.7,0.4622]
[1763568340537,0.43609052,2975.7,2974.7,0.4622]
[1763568340748,0.405504,2975.6,2974.7,0.4622]
[1763568340994,0.405504,2975.8,2974.7,0.4622]
[1763568341283,0.405504,2975.6,2974.6,0.001]
[1763568342041,0.405504,2975.6,2974.7,0.4735]
[1763568342350,0.84159452,2975.8,2974.7,0.4735]
[1763568342548,0.405504,2975.8,2974.7,0.4735]
[1763568342749,0.1949,2976.1,2974.7,0.4735]
[1763568342750,0.69947594,2976.0,2974.7,0.4735]
[1763568343477,1.37681029,2976.0,2974.7,0.4735]
[1763568343772,0.405504,2976.0,2974.7,0.4735]
[1763568343982,0.405504,2975.9,2974.7,0.4735]
[1763568344642,0.69973962,2975.9,2974.7,0.4735]
[1763568344840,0.405504,2976.0,2974.7,0.4735]
[1763568345046,1.17475334,2976.0,2974.7,0.4735]
[1763568345277,0.29424934,2975.9,2974.7,0.4735]
[1763568345476,0.405504,2975.8,2974.7,0.4735]
[1763568345780,0.69975334,2975.8,2974.7,0.4735]
[1763568346091,0.405504,2975.6,2974.7,0.4735]
[1763568346313,1.0334008,2976.1,2974.7,0.4735]
[1763568346503,0.67945636,2976.3,2975.5,0.1888]
[1763568346816,0.43609052,2976.4,2975.5,0.1888]
[1763568347116,0.97413841,2976.7,2975.6,0.4735]
[1763568347285,0.76982139,2976.6,2975.5,0.1888]
[1763568347491,0.43609052,2976.5,2975.5,0.1888]
[1763568347816,0.43609052,2976.5,2975.6,0.4735]
[1763568347817,0.29552212,2976.5,2975.6,0.4735]
[1763568348000,0.405504,2976.5,2975.6,0.4735]
[1763568348200,0.29552212,2976.6,2975.6,0.4735]
[1763568348201,0.405504,2976.3,2975.6,0.4735]
[1763568348626,0.43609052,2976.2,2975.6,0.4735]
[1763568348787,0.97483914,2976.4,2975.6,0.4735]
[1763568349121,0.405504,2976.5,2976.1,0.1888]
[1763568349301,0.405504,2976.5,2975.6,0.4735]
[1763568349302,0.7010685,2976.5,2975.6,0.4735]
[1763568349504,0.405504,2976.3,2975.6,0.4735]
[1763568350826,0.8405008,2977.3,2976.2,0.1888]
[1763568351123,0.7043,2977.2,2976.2,0.1888]
[1763568351416,0.405504,2977.1,2975.5,0.1888]
[1763568351625,0.405504,2976.9,2975.7,0.4735]
[1763568351820,0.70165515,2976.9,2975.7,0.4735]
[1763568352124,0.405504,2976.7,2975.7,0.4735]
[1763568352488,0.70165515,2976.7,2975.7,0.4735]
[1763568352898,0.002,2976.6,2975.7,0.4735]
[1763568353613,0.405504,2976.5,2975.7,0.4735]
[1763568353795,0.70165515,2976.5,2975.7,0.4735]
[1763568353996,1.7925404,2976.5,2975.7,0.4735]
[1763568354195,1.7925404,2976.5,2975.8,0.4735]
[1763568354196,0.405504,2976.3,2975.8,0.4735]
[1763568354401,0.405504,2976.4,2975.8,0.4735]
[1763568354581,0.70184347,2976.4,2975.8,0.4735]
[1763568354797,0.405504,2976.5,2975.8,0.4735]
[1763568355003,0.405504,2976.5,2975.1,0.4735]
[1763568355004,0.405504,2975.8,2975.1,0.4735]
[1763568355282,0.405504,2975.8,2974.6,0.001]
[1763568355283,0.81285285,2975.8,2974.6,0.001]
[1763568355530,0.40814885,2975.7,2974.7,0.4735]
[1763568355698,0.70459552,2975.7,2974.7,0.4735]
[1763568356030,0.40803187,2975.6,2974.7,0.4735]